[Event "AUT Bundesliga 2024-25"]
[Site "Austria"]
[Date "2025.04.03"]
[Round "7.19"]
[White "Dragnev, Valentin"]
[Black "Mons, Leon"]
[Result "1/2-1/2"]
[Annotator "TA"]
[ECO "C54"]
[WhiteElo "2538"]
[BlackElo "2479"]
[PlyCount "96"]
[EventDate "2024.08.28"]
[EventType "team-tourn"]
[EventCountry "AUT"]
[SourceTitle "playchess.com"]
[Source "ChessBase"]
[SourceQuality "1"]
[TimeControl "40/5400+30:1800+30"]

{[%evp 11,96,15,24,16,25,22,27,19,19,18,22,24,18,16,27,24,27,7,31,16,17,15,18,15,9,0,34,29,24,31,37,25,47,11,48,49,29,10,7,15,55,27,19,18,18,8,20,0,20,0,41,0,29,0,35,31,33,19,18,24,23,0,0,0,0,-17,0,0,0,0,0,0,0,0,0,0,0,0,0,0,0,0,0,0,0,0,0]} 1. e4 {[%emt 0:00:03]} e5 {[%emt 0:00:05]} 2. Nf3 {[%emt 0:00:17]} Nc6 {[%emt 0:00:06]} 3. Bc4 {[%emt 0:00:06]} Nf6 {[%emt 0:00:18]} 4. d3 {[%emt 0:00:08]} Bc5 {[%emt 0:01:43]} 5. c3 {[%emt 0:00:23]} d6 {[%emt 0:00:25]} 6. O-O {[%emt 0:00:15]} a6 {[%emt 0:01:26]} 7. Re1 $1 {[%emt 0:00:38][%mdl 4] 7.Re1 is the modern continuation. C54: Giuoco Piano: 4 c3 Nf6, main lines with 5 d4 and 5 d3.} Ba7 {[%emt 0:00:35]} 8. a4 {[%emt 0:00:10]} h6 {[%emt 0:03:44]} 9. Nbd2 {[%emt 0:00:35] White has an edge.} O-O {[%emt 0:04:19]} 10. h3 {[%emt 0:00:17]} Re8 {[%emt 0:07:49]} 11. b4 {[%emt 0:03:09]} Be6 {[%emt 0:00:20]} 12. Bxe6 {[%emt 0:00:08]} Rxe6 {[%emt 0:00:05]} 13. Qc2 {[%emt 0:00:13]} Qd7 {[%emt 0:00:44]} 14. Rb1 {[%emt 0:00:31]} b5 {[%emt 0:13:00]} 15. Ra1 {[%emt 0:00:11]} Ree8 {[%emt 0:01:38]} 16. Nf1 {[%emt 0:01:25][%cal Bd2f1,Bf1g3,Bg3f5][%mdl 32]} d5 {[%emt 0:07:01]} 17. Ng3 {[%emt 0:00:35]} Rad8 {[%emt 0:01:14]} 18. Bd2 {[%emt 0:01:28]} Bb6 {[%emt 0:03:58]} 19. a5 {[%emt 0:01:43]} Ba7 {[%emt 0:00:09]} 20. Rac1 {[%emt 0:00:14]} Re6 {[%emt 0:11:32]} 21. Nf5 {[%emt 0:22:03] Prevents Rd6.} Ne7 $146 {[%emt 0:10:29]} (21... Rc8 22. Qb2 Rd8 23. Re2 dxe4 24. dxe4 Qd3 {½-½ Marbourg,D (2477)-Rasmussen,E (2363) VW-Cup13 Gr54 email 2021}) 22. exd5 {[%emt 0:17:16]} (22. c4 bxc4 23. exd5 Nfxd5 24. dxc4 Nxf5 25. cxd5 Rf6 26. Qxc7 Nh4 27. Qxd7 Rxd7 28. Rxe5 Rxf3 29. Re8+) 22... Qxd5 {[%emt 0:06:56]} (22... Nfxd5 23. Nxe5 Rxe5 24. Nxh6+ gxh6 25. Rxe5 Ng6) 23. Nxe7+ {[%emt 0:03:23]} Rxe7 {[%emt 0:01:59]} 24. d4 {[%emt 0:01:04]} e4 {[%emt 0:01:10]} 25. Ne5 {[%emt 0:29:43]} Nd7 {[%emt 0:02:16]} ({But not} 25... Rxe5 $6 26. dxe5 Qxe5 (26... Qxd2 $2 {is the wrong capture.} 27. Red1 $18) 27. c4 $16 (27. Be3 Bxe3 28. Rxe3 c5 $16)) 26. Nxd7 {[%emt 0:04:20]} Rdxd7 {[%emt 0:00:09]} 27. Re2 {[%emt 0:00:20]} Re6 {[%emt 0:01:10]} 28. Rce1 {[%emt 0:00:24][%cal Re2e4]} Rde7 $1 {[%emt 0:04:29]} 29. Bf4 {[%emt 0:00:27]} c6 {[%emt 0:04:51]} 30. Bg3 {[%emt 0:05:09]} f6 {[%emt 0:02:08]} 31. Qd2 {[%emt 0:03:22]} Kf7 {[%emt 0:02:12]} 32. Qd1 {[%emt 0:01:04]} Qg5 {[%emt 0:01:36]} 33. Re3 {[%emt 0:00:47]} Qd5 {[%emt 0:01:50]} 34. Bh2 {[%emt 0:01:42]} Re8 {[%emt 0:01:34]} 35. Qe2 {[%emt 0:00:58]} g6 {[%emt 0:01:37]} 36. Qg4 {[%emt 0:01:18]} (36. g4 {with more complications.} Qg5 37. f3 Qxe3+ 38. Qxe3 exf3 39. Kf2) 36... h5 {[%emt 0:02:02] The position is equal.} 37. Qe2 {[%emt 0:00:20]} f5 {[%emt 0:01:22]} 38. Qc2 {[%emt 0:02:38]} Bb8 {[%emt 0:00:20]} 39. Bxb8 {[%emt 0:00:26]} Rxb8 {[%emt 0:00:01]} 40. f3 {[%emt 0:00:42][%cal Rf3e4]} Rbe8 {[%emt 0:00:15]} 41. fxe4 {[%emt 0:02:02]} Rxe4 {[%emt 0:02:22]} 42. Qf2 {[%emt 0:08:36]} h4 {[%emt 0:02:42]} 43. Rxe4 {[%emt 0:04:23]} Rxe4 {[%emt 0:02:23]} 44. Rxe4 {[%emt 0:00:06]} Qxe4 $11 {[%emt 0:00:05] KQ-KQ} 45. d5 {[%emt 0:00:41]} cxd5 {[%emt 0:02:34]} 46. Qa7+ {[%emt 0:00:37]} Qe7 {[%emt 0:00:06]} 47. Qxa6 {[%emt 0:00:13][%cal Og1f1] [#]} Qe1+ {[%emt 0:00:05]} 48. Kh2 {[%emt 0:00:07] Threatens to win with Qd6.} Qe5+ {[%emt 0:00:09] Weighted Error Value: White=0.08 (flawless) /Black=0.08 (flawless)   Inaccurate:     	White=4     	Black=6      OK:         	White=17    	Black=11     Best:        	White=1     	Black=2      Strong:       	---       	Black=1} 1/2-1/2

[Event "AUT Bundesliga 2024-25"]
[Site "Austria"]
[Date "2025.04.03"]
[Round "7.20"]
[White "Koelle, Tobias"]
[Black "Banusz, Tamas"]
[Result "0-1"]
[Annotator "TA"]
[ECO "D52"]
[WhiteElo "2459"]
[BlackElo "2592"]
[PlyCount "134"]
[EventDate "2024.08.28"]
[EventType "team-tourn"]
[EventCountry "AUT"]
[SourceTitle "playchess.com"]
[Source "ChessBase"]
[SourceQuality "1"]
[TimeControl "40/5400+30:1800+30"]

{[%evp 18,134,17,28,19,27,18,20,27,12,9,10,13,12,14,13,7,6,5,0,21,13,22,16,14,-4,18,10,8,11,20,16,18,9,20,0,14,0,0,0,-8,0,-7,-4,0,0,0,0,0,-2,-10,-51,-55,-49,-49,-60,-60,-51,-56,-55,-58,-73,-63,-72,-66,-75,-41,-88,-79,-117,-55,-56,0,-106,-106,-107,-112,-113,-106,-164,-181,-236,-218,-286,-284,-332,-288,-275,-266,-255,-253,-357,-350,-411,-404,-481,-506,-619,-459,-460,-380,-506,-511,-663,-654,-736,-632,-825,-608,-953,-948,-772,-1200,-922,-1264,-1070,-1068,-1542,-938]} 1. d4 {[%emt 0:00:08]} d5 {[%emt 0:00:07]} 2. c4 {[%emt 0:00:07]} e6 {[%emt 0:00:04]} 3. Nf3 {[%emt 0:00:09]} Nf6 {[%emt 0:00:06]} 4. Nc3 {[%emt 0:00:06]} c6 {[%emt 0:00:06]} 5. Bg5 {[%emt 0:00:05]} Nbd7 {[%emt 0:00:08]} 6. e3 {[%emt 0:02:06]} Qa5 {[%emt 0:00:12]} 7. cxd5 {[%emt 0:00:50]} Nxd5 {[%emt 0:00:09]} 8. Qd2 {[%emt 0:00:08]} Bb4 {[%emt 0:00:21]} 9. Rc1 {[%emt 0:00:09]} h6 {[%emt 0:00:38]} 10. Bh4 {[%emt 0:00:06]} b6 {[%emt 0:00:18] D52: Queen's Gambit Declined: Cambridge Springs Variation.} 11. a3 {[%emt 0:04:50]} Bxc3 {[%emt 0:00:39]} 12. bxc3 {[%emt 0:00:07]} c5 {[%emt 0:01:48] The position is equal.} 13. c4 {[%emt 0:01:27]} Qxd2+ {[%emt 0:00:06]} 14. Nxd2 {[%emt 0:00:23]} Ne7 {[%emt 0:00:23]} 15. f3 {[%emt 0:00:14]} Ba6 {[%emt 0:01:42]} 16. Bd3 {[%emt 0:09:53]} cxd4 {[%emt 0:04:04]} 17. exd4 {[%emt 0:00:16]} Rd8 $146 {[%emt 0:00:30][%cal Od7e5,Ba8d8,Bd8d7,Bd7c7][%mdl 32]} (17... e5 18. O-O exd4 19. Rfe1 f6 20. Bf2 Nc5 21. Bc2 Rd8 22. Nb3 Kf7 23. Nxd4 Bxc4 {½-½ Girya,O (2479)-Nechaeva,M (2391) EU-ch (Women) 16th 2015 (10)}) 18. Rc3 {[%emt 0:14:59]} Nf8 {[%emt 0:21:11]} 19. Bf2 {[%emt 0:05:30]} Nfg6 {[%emt 0:00:36]} 20. g3 {[%emt 0:06:51]} O-O {[%emt 0:03:24]} 21. f4 {[%emt 0:09:22]} Rd7 {[%emt 0:05:00]} 22. O-O {[%emt 0:02:24]} Rfd8 {[%emt 0:05:23]} 23. Nb3 {[%emt 0:05:08]} Rc8 {[%emt 0:02:02]} 24. Rfc1 {[%emt 0:01:02]} Rdc7 {[%emt 0:00:55]} 25. R3c2 {[%emt 0:02:28]} Nf8 {[%emt 0:03:37][%cal Bg6f8,Bf8d7,Bd7f6,Bf6e8,Be8d6][%mdl 32]} 26. h3 {[%emt 0:07:14]} Nd7 {[%emt 0:07:33]} 27. g4 {[%emt 0:02:33]} Nf6 {[%emt 0:00:42]} 28. Kh2 {[%emt 0:03:42]} h5 {[%emt 0:07:33]} 29. Kg3 {[%emt 0:00:52]} Ne8 {[%emt 0:00:18]} 30. Be3 {[%emt 0:01:44]} (30. gxh5 Nf6 $15) 30... hxg4 {[%emt 0:03:26]} 31. hxg4 {[%emt 0:21:07]} f5 {[%emt 0:00:14]} 32. g5 {[%emt 0:00:00]} Nd6 {[%emt 0:03:14]} 33. Nd2 {[%emt 0:00:00]} Bb7 {[%emt 0:05:42]} 34. d5 {[%emt 0:00:00]} exd5 {[%emt 0:03:07]} 35. cxd5 {[%emt 0:00:00]} (35. c5 Ne4+ 36. Nxe4 fxe4 37. cxb6 Rxc2 38. Bxc2 Nf5+ 39. Kf2 Nxe3 (39... Rc3 40. bxa7 d4 41. Rb1 $11) 40. Kxe3 axb6 $19) 35... Rxc2 {[%emt 0:01:32]} 36. Rxc2 {[%emt 0:00:00]} Rxc2 {[%emt 0:01:37]} 37. Bxc2 {[%emt 0:00:00]} Bxd5 {[%emt 0:00:35]} 38. Kf2 {[%emt 0:00:00]} Kf7 {[%emt 0:04:05]} 39. Bd4 {[%emt 0:00:00]} g6 {[%emt 0:00:49]} 40. Bd3 {[%emt 0:00:00]} Nc6 {[%emt 0:03:44]} 41. Bb2 {[%emt 0:31:39]} a5 {[%emt 0:34:02]} 42. Ke1 {[%emt 0:02:42]} (42. a4 $1 $15) 42... Ke6 {[%emt 0:01:08]} 43. Kd1 {[%emt 0:00:00]} Be4 {[%emt 0:00:00]} ({Black should play} 43... b5 $17 44. Bf1 Kd7) 44. Bc4+ $1 $15 {[%emt 0:00:00]} Bd5 {[%emt 0:00:00]} (44... Nxc4 $15 45. Nxc4 b5) 45. Be2 {[%emt 0:00:00]} (45. Bd3 $11) 45... b5 $17 {[%emt 0:00:00] White is now going downhill.} 46. Bc3 {[%emt 0:00:00]} Kd7 {[%emt 0:00:00]} 47. Kc1 {[%emt 0:00:00]} Kc7 {[%emt 0:00:00]} 48. Bf6 {[%emt 0:00:00] [#]} (48. Nb1 $17) 48... Kb6 $1 $19 {[%emt 0:00:00]} 49. Bg7 {[%emt 0:00:00]} (49. Nb1 $142) 49... Kc5 {[%emt 0:00:00]} 50. Bc3 {[%emt 0:00:00]} Nd4 {[%emt 0:00:00]} 51. Bd3 {[%emt 0:00:00]} b4 {[%emt 0:00:00]} 52. axb4+ {[%emt 0:00:00]} axb4 {[%emt 0:00:00]} 53. Bb2 {[%emt 0:00:00]} Nf7 {[%emt 0:00:00]} 54. Bf1 {[%emt 0:00:00]} (54. Ba6 $142) 54... Nd8 {[%emt 0:00:00]} ({Weaker is} 54... Ne6 55. Kc2 $19) 55. Kd1 {[%emt 0:00:00]} N8e6 {[%emt 0:00:00]} 56. Bc1 {[%emt 0:00:00]} Nxf4 {[%emt 0:00:00]} 57. Ne4+ {[%emt 0:00:00]} Bxe4 {[%emt 0:02:18]} 58. Bxf4 {[%emt 0:00:00][%mdl 4096] Endgame KBB-KBN. Black is two pawns up.} Kd5 {[%emt 0:02:49]} 59. Kc1 {[%emt 0:00:00]} Ne6 {[%emt 0:01:23] Black is clearly winning.} 60. Bd2 {[%emt 0:00:00]} b3 {[%emt 0:00:29]} 61. Kb2 {[%emt 0:00:00]} Bc2 {[%emt 0:00:44] Threatens to win with ...f4.} 62. Kc3 {[%emt 0:00:00]} Ke5 {[%emt 0:00:31]} 63. Bc4 {[%emt 0:00:00]} Nc5 {[%emt 0:01:03] [#] ( -> ...Ne4+)} 64. Kb4 {[%emt 0:01:49]} Ne4 {[%emt 0:00:35]} 65. Bc1 {[%emt 0:00:06]} f4 {[%emt 0:00:22]} 66. Be2 {[%emt 0:00:30]} Kf5 {[%emt 0:00:53]} 67. Kc4 {[%emt 0:00:21]} Nxg5 {[%emt 0:00:21] Weighted Error Value: White=0.27 (precise) /Black=0.11 (very precise)   Mistake:       	White=5     	Black=2      Inaccurate:     	White=4     	Black=1      OK:         	White=11    	Black=29     Best:        	White=1     	Black=1      Strong:       	White=1     	Black=1} 0-1

[Event "AUT Bundesliga 2024-25"]
[Site "Austria"]
[Date "2025.04.03"]
[Round "7.21"]
[White "Blohberger, Felix"]
[Black "Deuer, Marius"]
[Result "0-1"]
[Annotator "TA"]
[ECO "A30"]
[WhiteElo "2511"]
[BlackElo "2464"]
[PlyCount "63"]
[EventDate "2024.08.28"]
[EventType "team-tourn"]
[EventCountry "AUT"]
[SourceTitle "playchess.com"]
[Source "ChessBase"]
[SourceQuality "1"]
[TimeControl "40/5400+30:1800+30"]

{[%evp 9,63,15,22,10,26,23,11,12,19,15,6,0,26,0,0,-23,-16,-19,-14,-33,10,-9,24,18,38,20,42,33,16,4,6,-16,0,0,23,0,48,60,52,54,59,59,50,33,56,0,32,34,33,0,0,-538,-537,-981,-955,-934]} 1. Nf3 {[%emt 0:00:04]} Nf6 {[%emt 0:00:07]} 2. c4 {[%emt 0:00:04]} c5 {[%emt 0:00:04]} 3. b3 {[%emt 0:00:03]} Nc6 {[%emt 0:08:02]} 4. Bb2 {[%emt 0:00:06]} e6 {[%emt 0:00:27]} 5. g3 {[%emt 0:00:23]} d5 {[%emt 0:05:03]} 6. cxd5 {[%emt 0:00:29] A30: Symmetrical English: Double Fianchetto and Hedgehog.} exd5 {[%emt 0:00:09]} 7. Bg2 {[%emt 0:00:05]} d4 {[%emt 0:01:06] 7...d4 is better than 7...Be7.} 8. O-O {[%emt 0:00:19] The position is equal.} Be7 {[%emt 0:02:05]} 9. Na3 {[%emt 0:01:50][%cal Bb1a3,Ba3c4,Bc4e5][%mdl 32]} O-O {[%emt 0:02:09]} 10. e3 {[%emt 0:06:34]} Bg4 {[%emt 0:07:11]} 11. h3 {[%emt 0:11:17]} Bh5 {[%emt 0:03:09]} 12. g4 {[%emt 0:09:17]} Bg6 {[%emt 0:01:31]} 13. Nc4 {[%emt 0:00:34]} Rc8 {[%emt 0:09:20]} 14. Re1 {[%emt 0:23:57]} Rc7 $146 {[%emt 0:15:19]} (14... Nb4 15. Nce5 Bc2 16. Qe2 Bd6 17. d3 Re8 18. a3 Bxe5 19. axb4 Bxb3 20. bxc5 Rxc5 21. Bxd4 {½-½ So,W (2778)-Aronian,L (2764) Norway Masters blitz 6th 2018 (4)}) 15. Nfe5 {[%emt 0:07:14]} Nxe5 {[%emt 0:05:34] Successful Defense Black} 16. Nxe5 {[%emt 0:00:07]} Be4 {[%emt 0:02:36]} 17. exd4 {[%emt 0:10:49]} Bxg2 {[%emt 0:00:30]} 18. Kxg2 {[%emt 0:00:06]} cxd4 {[%emt 0:00:22]} 19. Qf3 {[%emt 0:06:27]} Bb4 {[%emt 0:09:02]} 20. Qd3 {[%emt 0:00:47]} Bc5 {[%emt 0:02:24]} 21. Rac1 {[%emt 0:04:51][%cal Oc1c5]} Re8 {[%emt 0:02:26]} 22. a3 {[%emt 0:05:57]} Nd5 {[%emt 0:03:39]} (22... Bxa3 $11 23. Bxa3 Rxc1 24. Bxc1 Qd5+ 25. Kg1 Rxe5 26. Rxe5 Qxe5) 23. Qf3 $14 {[%emt 0:01:01][%cal Oc1c5]} f6 {[%emt 0:03:02]} 24. Nd3 {[%emt 0:01:21] [#] Rxe8+ would now be deadly.} Rxe1 {[%emt 0:00:07]} 25. Rxe1 {[%emt 0:00:08]} Bb6 {[%emt 0:06:01]} 26. Re4 {[%emt 0:02:49]} Rc2 {[%emt 0:04:12]} 27. Qf5 {[%emt 0:04:23]} (27. Qd1 $14 Qc8 28. Bxd4) 27... g6 {[%emt 0:01:47]} (27... Rxd2 28. Qe6+ Kf8 29. a4) 28. Qe6+ {[%emt 0:00:17]} Kg7 {[%emt 0:00:22]} 29. g5 {[%emt 0:02:15]} Rxd2 {[%emt 0:02:36]} 30. gxf6+ $2 {[%emt 0:00:41][%mdl 8192] [#]} (30. Ne5 $1 $11 {and White stays safe.} fxe5 (30... Rxb2 31. Qf7+ Kh8 32. Nxg6+ hxg6 33. Rh4#) 31. Qxe5+ Kg8 32. Qe6+ Kf8 33. Qe5) 30... Nxf6 $19 {[%emt 0:00:48]} 31. Ne5 {[%emt 0:01:10]} Nxe4 {[%emt 0:00:50]} 32. Qf7+ {[%emt 0:00:03] Weighted Error Value: White=0.56/Black=0.09 (flawless)   Loses game:     	White=1     	---        Mistake:       	White=1     	Black=1      Inaccurate:     	White=3     	Black=3      OK:         	White=7     	Black=13     Best:        	White=2     	Black=3} 0-1

[Event "AUT Bundesliga 2024-25"]
[Site "Austria"]
[Date "2025.04.03"]
[Round "7.22"]
[White "Rosner, Jonas"]
[Black "Peyrer, Konstantin"]
[Result "0-1"]
[Annotator "RC"]
[ECO "A17"]
[WhiteElo "2430"]
[BlackElo "2451"]
[PlyCount "78"]
[EventDate "2024.08.28"]
[EventType "team-tourn"]
[EventCountry "AUT"]
[SourceTitle "playchess.com"]
[Source "ChessBase"]
[SourceQuality "1"]
[TimeControl "40/5400+30:1800+30"]

1. Nf3 {[%emt 0:00:03]} Nf6 {[%emt 0:00:14]} 2. c4 {[%emt 0:00:08]} e6 {[%emt 0:00:05]} 3. Nc3 {[%emt 0:00:19]} d5 {[%emt 0:00:09]} 4. e3 {[%emt 0:00:25]} Nbd7 {[%emt 0:00:14]} 5. b3 {[%emt 0:01:20]} b6 {[%emt 0:00:15]} 6. cxd5 {[%emt 0:02:26]} exd5 {[%emt 0:01:04]} 7. Bb2 {[%emt 0:00:49]} Bb7 {[%emt 0:00:08]} 8. Rc1 {[%emt 0:02:16]} a6 {[%emt 0:00:47]} 9. Ne2 {[%emt 0:02:01]} c5 {[%emt 0:04:43]} 10. Ng3 {[%emt 0:02:57]} g6 {[%emt 0:09:06]} 11. Be2 {[%emt 0:03:50]} Bd6 {[%emt 0:02:08]} 12. d4 {[%emt 0:02:29]} O-O {[%emt 0:03:44]} 13. O-O {[%emt 0:01:17]} Qe7 {[%emt 0:03:18]} 14. Rc2 {[%emt 0:02:23]} h5 {[%emt 0:07:47]} 15. Qa1 {[%emt 0:04:42]} Ng4 {[%emt 0:01:16]} 16. Rfc1 {[%emt 0:11:13]} f5 {[%emt 0:10:36]} 17. Nf1 {[%emt 0:04:19]} Rae8 {[%emt 0:04:38]} 18. h3 {[%emt 0:04:47]} Ngf6 {[%emt 0:00:28]} 19. g3 {[%emt 0:13:58]} Ne4 {[%emt 0:00:50]} 20. h4 {[%emt 0:00:55]} f4 {[%emt 0:08:34]} 21. exf4 {[%emt 0:02:40]} Bxf4 {[%emt 0:02:34]} 22. Re1 {[%emt 0:04:43]} Bd6 {[%emt 0:00:16]} 23. N1h2 {[%emt 0:02:55]} g5 {[%emt 0:14:41]} 24. hxg5 {[%emt 0:03:24]} h4 {[%emt 0:00:25]} 25. Ng4 {[%emt 0:04:28]} hxg3 {[%emt 0:00:36]} 26. Kg2 {[%emt 0:01:05]} c4 {[%emt 0:01:48]} 27. bxc4 {[%emt 0:03:34]} gxf2 {[%emt 0:00:12]} 28. Rh1 {[%emt 0:07:41]} f1=Q+ {[%emt 0:04:10]} 29. Rxf1 {[%emt 0:04:12]} Ng3 {[%emt 0:00:23]} 30. Rf2 {[%emt 0:01:29]} Nxe2 {[%emt 0:00:54]} 31. Rcxe2 {[%emt 0:01:09]} Qxe2 {[%emt 0:01:29]} 32. Rxe2 {[%emt 0:01:45]} Rxe2+ {[%emt 0:00:08]} 33. Kf1 {[%emt 0:00:23]} Re4 {[%emt 0:00:26]} 34. Nh6+ {[%emt 0:00:32]} Kg7 {[%emt 0:00:15]} 35. c5 {[%emt 0:03:50]} bxc5 {[%emt 0:00:25]} 36. dxc5+ {[%emt 0:00:17]} Be5 {[%emt 0:00:05]} 37. Kf2 {[%emt 0:00:49]} d4 {[%emt 0:00:30]} 38. c6 {[%emt 0:00:50]} Bxc6 {[%emt 0:00:46]} 39. Qc1 {[%emt 0:00:01]} Bd5 {[%emt 0:00:07]} 0-1

[Event "AUT Bundesliga 2024-25"]
[Site "Austria"]
[Date "2025.04.03"]
[Round "7.23"]
[White "Froewis, Georg"]
[Black "Hacker, Jonas"]
[Result "1-0"]
[Annotator "RC"]
[ECO "A54"]
[WhiteElo "2429"]
[BlackElo "2370"]
[PlyCount "59"]
[EventDate "2024.08.28"]
[EventType "team-tourn"]
[EventCountry "AUT"]
[SourceTitle "playchess.com"]
[Source "ChessBase"]
[SourceQuality "1"]
[TimeControl "40/5400+30:1800+30"]

1. Nf3 {[%emt 0:00:04]} d5 {[%emt 0:00:07]} 2. g3 {[%emt 0:00:03]} Nd7 {[%emt 0:00:21]} 3. Bg2 {[%emt 0:00:28]} e5 {[%emt 0:00:58]} 4. d3 {[%emt 0:00:18]} Ngf6 {[%emt 0:00:38]} 5. O-O {[%emt 0:00:05]} Be7 {[%emt 0:03:10]} 6. c4 {[%emt 0:01:36]} dxc4 {[%emt 0:02:19]} 7. dxc4 {[%emt 0:00:04]} O-O {[%emt 0:02:11]} 8. Nc3 {[%emt 0:00:08]} c6 {[%emt 0:00:53]} 9. Qc2 {[%emt 0:00:17]} Qc7 {[%emt 0:02:47]} 10. b3 {[%emt 0:00:20]} Re8 {[%emt 0:07:49]} 11. Bb2 {[%emt 0:00:26]} Bf8 {[%emt 0:02:30]} 12. Rad1 {[%emt 0:01:32]} g6 {[%emt 0:04:31]} 13. h3 {[%emt 0:06:15]} Nc5 {[%emt 0:08:40]} 14. Qc1 {[%emt 0:02:40]} e4 {[%emt 0:10:49]} 15. Nd4 {[%emt 0:04:58]} e3 {[%emt 0:02:49]} 16. f4 {[%emt 0:00:42]} a5 {[%emt 0:08:47]} 17. Rf3 {[%emt 0:05:52]} Bd7 {[%emt 0:07:56]} 18. Rxe3 {[%emt 0:04:22]} Rxe3 {[%emt 0:00:33]} 19. Qxe3 {[%emt 0:00:05]} Re8 {[%emt 0:00:18]} 20. Qd2 {[%emt 0:04:12]} h5 {[%emt 0:05:00]} 21. Nf3 {[%emt 1:06:33]} Bg7 {[%emt 0:02:37]} 22. Ne5 {[%emt 0:00:00]} Bf5 {[%emt 0:01:28]} 23. Qd4 {[%emt 0:00:00]} Nfd7 {[%emt 0:02:44]} 24. e4 {[%emt 0:00:00]} Rxe5 {[%emt 0:06:23]} 25. fxe5 {[%emt 0:00:00]} Bxe5 {[%emt 0:00:12]} 26. Qd2 {[%emt 0:00:00]} Be6 {[%emt 0:01:32]} 27. Ne2 {[%emt 0:00:00]} Bxg3 {[%emt 0:04:12]} 28. Nxg3 {[%emt 0:00:00]} Qxg3 {[%emt 0:00:04]} 29. Qh6 {[%emt 0:00:00]} f6 {[%emt 0:00:42]} 30. Bxf6 {[%emt 0:00:00]} 1-0

[Event "AUT Bundesliga 2024-25"]
[Site "Austria"]
[Date "2025.04.03"]
[Round "7.24"]
[White "Hinterreiter, Markus"]
[Black "Balint, Peter"]
[Result "0-1"]
[Annotator "RC"]
[ECO "A38"]
[WhiteElo "2236"]
[BlackElo "2366"]
[PlyCount "62"]
[EventDate "2024.08.28"]
[EventType "team-tourn"]
[EventCountry "AUT"]
[SourceTitle "playchess.com"]
[Source "ChessBase"]
[SourceQuality "1"]
[TimeControl "40/5400+30:1800+30"]

1. Nf3 {[%emt 0:00:02]} Nf6 {[%emt 0:00:07]} 2. g3 {[%emt 0:00:19]} g6 {[%emt 0:00:21]} 3. Bg2 {[%emt 0:00:27]} Bg7 {[%emt 0:00:28]} 4. O-O {[%emt 0:00:46]} O-O {[%emt 0:00:26]} 5. c4 {[%emt 0:00:48]} c5 {[%emt 0:00:04]} 6. Nc3 {[%emt 0:00:34]} Nc6 {[%emt 0:00:06]} 7. d4 {[%emt 0:00:40]} cxd4 {[%emt 0:00:07]} 8. Nxd4 {[%emt 0:00:09]} Qa5 {[%emt 0:00:03]} 9. Nc2 {[%emt 0:01:09]} d6 {[%emt 0:00:11]} 10. Bd2 {[%emt 0:01:15]} Qh5 {[%emt 0:00:12]} 11. e4 {[%emt 0:01:03]} Qxd1 {[%emt 0:00:39]} 12. Raxd1 {[%emt 0:02:51]} Bg4 {[%emt 0:00:23]} 13. f3 {[%emt 0:01:52]} Bd7 {[%emt 0:00:06]} 14. b3 {[%emt 0:07:59]} Rab8 {[%emt 0:09:08]} 15. a4 {[%emt 0:11:07]} Rfc8 {[%emt 0:11:06]} 16. Rb1 {[%emt 0:07:01]} a6 {[%emt 0:03:22]} 17. Rfd1 {[%emt 0:03:49]} Ne8 {[%emt 0:03:08]} 18. Nd5 {[%emt 0:14:28]} b5 {[%emt 0:05:50]} 19. axb5 {[%emt 0:02:30]} axb5 {[%emt 0:00:06]} 20. cxb5 {[%emt 0:01:18]} Rxb5 {[%emt 0:00:18]} 21. Bf1 {[%emt 0:01:40]} Rbb8 {[%emt 0:03:49]} 22. Ba6 {[%emt 0:11:04]} Rd8 {[%emt 0:01:38]} 23. b4 {[%emt 0:00:51]} e6 {[%emt 0:00:56]} 24. Nc3 {[%emt 0:03:51]} Ne5 {[%emt 0:07:17]} 25. Kg2 {[%emt 0:01:55]} Rb6 {[%emt 0:00:56]} 26. Ra1 {[%emt 0:03:21]} Ra8 {[%emt 0:04:54]} 27. Be2 {[%emt 0:02:13]} Rc8 {[%emt 0:00:22]} 28. Na4 {[%emt 0:02:05]} Bxa4 {[%emt 0:01:36]} 29. Rxa4 {[%emt 0:00:14]} Rxc2 {[%emt 0:00:06]} 30. Ra8 {[%emt 0:01:21]} Kf8 {[%emt 0:00:05]} 31. f4 {[%emt 0:00:25]} Nd7 {[%emt 0:01:03]} 0-1